Cogmind - Beta 13 @@@ ROGUE MODE // 2024.04.01 @ 09:44:20 Player: Sixten Result: Destroyed by IB-IBW(R) with Subdweller Shrapnel Launcher Performance ------------- Evolutions (0) 0 Regions Visited (3) 600 Robots Destroyed (7) 35 Value Destroyed (229) 229 Prototype IDs (3) 60 Alien Tech Used (0) 0 Bonus (-28) -28 TOTAL SCORE: 896 Bonus ------- Friendly Fire -28 Cogmind --------- Core Integrity 0/250 Matter 281/300 Energy 100/100 System Corruption 3% Temperature Cool (0) Movement Core (400) Ox7 Location -10/Subcaves Parts ------- > --- POWER (1) -------- (None) > --- PROPULSION (2) --- (None) > --- UTILITY (2) ------ Large Storage Unit Experimental Sensor Array > --- WEAPON (2) ------- Light Assault Rifle > --- INVENTORY (15) --- Ion Engine Light Ion Engine Reinforced Ion Engine Reinforced Ion Engine Aluminum Leg Aluminum Leg Small Storage Unit Medium Laser Peak State ------------ > --- POWER ------------ Reinforced Ion Engine > --- PROPULSION ------- Aluminum Leg Aluminum Leg > --- UTILITY ---------- Large Storage Unit Experimental Sensor Array > --- WEAPON ----------- Assault Rifle Grenade Launcher > --- INVENTORY -------- Ion Engine Light Ion Engine Reinforced Ion Engine Reinforced Ion Engine Aluminum Leg Aluminum Leg Small Storage Unit Medium Laser Light Assault Rifle [Rating: 17] Favorites ----------- Power Reinforced Ion Engine Engine Reinforced Ion Engine Propulsion Aluminum Leg Leg Aluminum Leg Utility Large Storage Unit Device Experimental Sensor Array Storage Large Storage Unit Weapon Assault Rifle Ballistic Gun Assault Rifle Launcher Grenade Launcher Build | -11 -10 -10 -10 ------- Run | Yrd Mat Min Sub Slots Evolved . | . . . . Power . | . . . . Propulsion . | . . . . Utility . | . . . . Weapon . | . . . . Parts Attached 11 | 6 2 2 1 Power 2 | 1 1 . . Engine 2 | 1 1 . . Core . | . . . . Reactor . | . . . . Propulsion 2 | 2 . . . Treads . | . . . . Leg 2 | 2 . . . Wheel . | . . . . Hover . | . . . . Flight . | . . . . Utility 3 | 1 1 1 . Device 1 | . . 1 . Storage 2 | 1 1 . . Processor . | . . . . Hackware . | . . . . Protection . | . . . . Artifact . | . . . . Weapon 4 | 2 . 1 1 Energy Gun . | . . . . Energy Cannon . | . . . . Ballistic Gun 3 | 2 . . 1 Ballistic Cannon . | . . . . Launcher 1 | . . 1 . Special Weapon . | . . . . Impact Weapon . | . . . . Slashing Weapon . | . . . . Piercing Weapon . | . . . . Special Melee Weapon . | . . . . Unidentified Prototypes 1 | . . 1 . Parts Lost 5 | . . . 5 Power 1 | . . . 1 Propulsion 2 | . . . 2 Utility . | . . . . Weapon 2 | . . . 2 Highest Loss Streak 5 | . . . 5 To Critical Strikes . | . . . . Average Slot Usage (%) 91 | . 85 96 94 Engine 13 | . 14 14 12 Leg 27 | . 28 28 24 Device 7 | . . 10 14 Storage 14 | . 14 14 14 Ballistic Gun 19 | . 28 14 14 Launcher 8 | . . 14 12 Naked Turns . | . . . . Heaviest Build 36 | 13 33 36 36 Greatest Support 20 | 20 20 20 20 Greatest Overweight (x) 3 | . 1 1 3 Average Overweight (x) . | . . 1 1 Largest Inventory Capacity 15 | 8 15 15 15 Average Capacity 12 | 6 10 15 15 Most Carried 9 | 4 9 9 9 Average Carried 7 | 1 7 9 8 Final Capacity 15 | 8 15 15 15 Final Carried 9 | 2 9 9 8 Class Distribution -------------------- 100% | Mutant Dominant Class ---------------- Mutant | -10/Materials Mutant | -10/Mines Mutant | -10/Subcaves Resources | -11 -10 -10 -10 ----------- Run | Yrd Mat Min Sub Matter Collected 444 | 119 110 192 23 Remotely . | . . . . Salvage Created 304 | . 110 163 31 Parts 16 | . 8 6 2 Haulers Intercepted . | . . . . Recyclers Shooed . | . . . . Parts Field Recycled . | . . . . Retrieved Matter . | . . . . Parts Self-Destructed . | . . . . Prevented . | . . . . Kills | -11 -10 -10 -10 ------- Run | Yrd Mat Min Sub Combat Hostiles Destroyed 6 | . 3 2 1 Guns 4 | . 3 1 . AOE 2 | . . 1 1 Classes Destroyed 3 | . 1 1 1 Recycler 1 | . . 1 . Grunt 5 | . 3 2 . Subdweller 1 | . . . 1 Best Kill Streak 2 | . 2 2 1 Combat Bots Only 2 | . 2 2 1 Max Kills in Single Turn 1 | . 1 1 1 Gunslinging . | . . . . Exploded 1 | . . 1 1 Melee . | . . . . Uniques/NPCs Destroyed . | . . . . Combat | -11 -10 -10 -10 -------- Run | Yrd Mat Min Sub Hostile Shots Fired 42 | . 27 5 10 Missed 8 | . 6 2 . Damage Taken 809 | . 213 78 518 Core 252 | . 34 12 206 Absorbed by Shields . | . . . . Core Remaining (%) 100 | 100 . . . Volleys Fired 30 | . 18 3 9 Largest 2 | . 2 2 2 Hottest 50 | . 40 50 50 Shots Fired 55 | . 36 6 13 Gun 51 | . 36 3 12 Cannon . | . . . . Launcher 4 | . . 3 1 Special . | . . . . Kinetic 51 | . 36 3 12 Thermal . | . . . . Explosive 4 | . . 3 1 Electromagnetic . | . . . . Robot Hit Streak 5 | . 4 4 5 Robot Miss Streak 5 | . 5 1 2 Penetration Max . | . . . . Secondary Targets . | . . . . Shots Hit Robots 29 | . 17 4 8 Core Hits 19 | . 6 11 2 Critical Kills . | . . . . Critical Parts Destroyed . | . . . . Critical Strikes . | . . . . Melee Attacks . | . . . . Impact . | . . . . Slashing . | . . . . Piercing . | . . . . Sneak Attacks . | . . . . Combat Hostiles . | . . . . Follow-up Attacks . | . . . . Damage Inflicted 499 | . 130 248 121 Guns 233 | . 128 40 65 Cannons . | . . . . Explosions 264 | . . 208 56 Melee . | . . . . Ramming 2 | . 2 . . Kinetic 233 | . 128 40 65 Thermal . | . . . . Explosive 264 | . . 208 56 Electromagnetic . | . . . . Impact . | . . . . Slashing . | . . . . Piercing . | . . . . Highest Corruption 3 | . 3 3 3 Average Corruption 2 | . 2 3 3 Corruption Purged . | . . . . Corruption Blocked . | . . . . Effects 14 | . 3 9 2 Message Errors 2 | . 1 1 . Matter Fused 3 | . 1 2 . Heat Flow Errors 3 | . 1 1 1 Energy Discharges 3 | . . 2 1 Data Loss (minor) 3 | . . 3 . Overload Shots . | . . . . Overflow Damage 7 | . . 7 . Projectiles . | . . . . Explosions 7 | . . 7 . Melee . | . . . . Knockbacks . | . . . . Impact . | . . . . Kinetic . | . . . . Secondary . | . . . . Self-Inflicted Damage 38 | . . 38 . Shots 1 | . . 1 . Rammed . | . . . . Targets Rammed 2 | . 2 . . Kicked 2 | . 2 . . Crushed . | . . . . Highest Temperature 269 | . 269 158 132 Average Temperature 36 | . 23 55 79 Received Heat Transfer 114 | . 90 24 . Siege Activations . | . . . . Robots Corrupted . | . . . . Combat Hostiles . | . . . . Parts Fried . | . . . . Impact Corruptions . | . . . . Robots Melted . | . . . . Combat Hostiles . | . . . . Parts Melted 1 | . . 1 . Heat Transferred . | . . . . Parts Sabotaged . | . . . . Parts Stolen . | . . . . Parts Stripped . | . . . . Power Chain Reactions . | . . . . Alert | -11 -10 -10 -10 ------- Run | Yrd Mat Min Sub Peak Influence 100 | . 100 74 . Initial . | . . . . Average 51 | . 59 49 . Maximum Alert Level . | . . . . Low Security (%) 100 | 100 100 100 . Level 1 . | . . . . Level 2 . | . . . . Level 3 . | . . . . Level 4 . | . . . . Level 5 . | . . . . High Security . | . . . . Max Security . | . . . . Squads Dispatched 2 | . 2 . . Investigation . | . . . . Extermination . | . . . . Reinforcement 2 | . 2 . . Assault . | . . . . Garrison . | . . . . Intercept . | . . . . Searches Triggered . | . . . . Construction Impeded . | . . . . Haulers Reinforced . | . . . . Active Scanning Responses . | . . . . Cargo Convoy Interrupts . | . . . . Stealth | -11 -10 -10 -10 --------- Run | Yrd Mat Min Sub Distress Signals . | . . . . Communications Jammed . | . . . . Distress Signals . | . . . . Times Spotted 23 | . 11 10 2 Peak Tracking Total 14 | . 3 14 1 Tactical Retreats . | . . . . Traps | -11 -10 -10 -10 ------- Run | Yrd Mat Min Sub Traps Triggered 2 | . 2 . . Indirectly . | . . . . Trap Hack Attempts . | . . . . Triggered . | . . . . Disarmed . | . . . . Reprogrammed . | . . . . Reused . | . . . . Traps Extracted . | . . . . Installed . | . . . . Triggered . | . . . . Machines | -11 -10 -10 -10 ---------- Run | Yrd Mat Min Sub Machines Disabled . | . . . . Max in Single Turn . | . . . . Machines Repaired . | . . . . Machines Dismantled . | . . . . Machines Sabotaged . | . . . . Overloaded Fab Kills . | . . . . Hacking | -11 -10 -10 -10 --------- Run | Yrd Mat Min Sub Machines Accessed 1 | . 1 . . Terminals 1 | . 1 . . Fabricators . | . . . . Repair Stations . | . . . . Recycling Units . | . . . . Scanalyzers . | . . . . Garrison Access . | . . . . Total Hacks 3 | . 3 . . Successful 3 | . 3 . . Failed . | . . . . Catastrophic . | . . . . Database Lockouts . | . . . . Manual . | . . . . Terminals 3 | . 3 . . Fabricators . | . . . . Repair Stations . | . . . . Recycling Units . | . . . . Scanalyzers . | . . . . Garrison Access . | . . . . Terminal Hacks 3 | . 3 . . Record 2 | . 2 . . Prototype ID Bank 1 | . 1 . . Fabricator Hacks . | . . . . Repair Station Hacks . | . . . . Recycling Unit Hacks . | . . . . Scanalyzer . | . . . . Garrison Access Hacks . | . . . . Unauthorized Hacks . | . . . . Terminals . | . . . . Fabricators . | . . . . Repair Stations . | . . . . Recycling Units . | . . . . Scanalyzers . | . . . . Garrison Access . | . . . . Data Cores Recovered . | . . . . Used . | . . . . Hacking Detections 1 | . 1 . . Full Trace Events 1 | . 1 . . Feedback Events . | . . . . Feedback Blocked . | . . . . Robot Schematics Acquired . | . . . . Robots Built . | . . . . Authchips . | . . . . Time . | . . . . Total Robot Build Rating . | . . . . Part Schematics Acquired . | . . . . Parts Built . | . . . . Authchips . | . . . . Time . | . . . . Total Part Build Rating . | . . . . Parts Repaired . | . . . . Time . | . . . . Parts Recycled . | . . . . Recycled Matter . | . . . . Retrieved Matter . | . . . . Retrieved Components . | . . . . Parts Scanalyzed . | . . . . Part Schematics Acquired . | . . . . Parts Damaged . | . . . . Bothacking | -11 -10 -10 -10 ------------ Run | Yrd Mat Min Sub Used RIF Installer . | . . . . Robots Hacked . | . . . . Non-combat . | . . . . Combat . | . . . . Robot Hacks Applied . | . . . . Relay Couplers Released . | . . . . Fabnet Peak Effective % . | . . . . Robots Rewired . | . . . . Allies Hacked . | . . . . Hacks Repelled . | . . . . Allies | -11 -10 -10 -10 -------- Run | Yrd Mat Min Sub Total Allies 1 | . . 1 . Largest Group 1 | . . 1 . Highest-Rated Group 31 | . . 31 . Highest-Rated Ally 31 | . . 31 . Total Orders . | . . . . Ally Attacks 2 | . . 2 . Total Damage . | . . . . Kills . | . . . . Allies Corrupted . | . . . . Allies Melted . | . . . . Intel | -11 -10 -10 -10 ------- Run | Yrd Mat Min Sub Robot Analysis Total . | . . . . Derelict Logs Recovered . | . . . . Drone Launches . | . . . . Drone Recoveries . | . . . . Exploration | -11 -10 -10 -10 ------------- Run | Yrd Mat Min Sub Turns Passed 1271 | 55 475 510 231 Spaces Moved 701 | 45 286 263 107 Core 16 | 16 . . . Treads . | . . . . Legs 685 | 29 286 263 107 Wheels . | . . . . Hover . | . . . . Flight . | . . . . Fastest Speed 50 | 50 120 190 190 Average Speed 164 | 95 140 190 195 Slowest Speed 330 | 120 190 190 330 Overloaded Moves . | . . . . Propulsion Burnouts . | . . . . Robots Hopped . | . . . . Cave-ins Triggered . | . . . . Exploration Rate (%) 18 | 2 36 25 10 Regions Visited 3 Branch Regions 2 Pre-discovered Areas 1 | . . 1 . Known Exits Taken . | . . . . Unknown Exits Taken 3 | 1 1 1 . Scrap Searched . | . . . . Spaces Dug . | . . . . Terrain Destroyed 33 | . . 26 7 Melee . | . . . . Projectile . | . . . . AOE 33 | . . 26 7 Terrain Rammed . | . . . . Walls Destroyed . | . . . . Machines Disabled . | . . . . Actions | -11 -10 -10 -10 --------- Run | Yrd Mat Min Sub Total 768 | 56 328 267 117 Wait 15 | . 15 . . Move 698 | 44 285 262 107 Hop . | . . . . Pick Up 11 | 6 5 . . Fast Attach 4 | 2 1 1 . Attach 5 | 4 . . 1 Detach 1 | . 1 . . Swap 2 | . 1 1 . Drop . | . . . . Fire 30 | . 18 3 9 Melee . | . . . . Ram . | . . . . Kick 2 | . 2 . . Crush . | . . . . Escape Stasis . | . . . . Rewire . | . . . . Trap . | . . . . Miscellaneous . | . . . . Route ------- -11/Scrapyard -10/Materials (discovered 2 exits: [*Mat] / [*Min]) -10/Mines -10/Subcaves History --------- Turn | Location | Event 7 | -11/Scrapyard | Discovered new exit (range 15) 56 | -11/Scrapyard | Entered Materials 293 | -10/Materials | Discovered new exit (range 4) 316 | -10/Materials | Build established: Mutant 507 | -10/Materials | Discovered new exit (range 7) 531 | -10/Materials | Entered Mines 537 | -10/Mines | Escorted by a lone wolf Derelict 557 | -10/Mines | Learned location of Storage (-7) 651 | -10/Mines | Found a damaged Exp. Sensor Array with a note attached 655 | -10/Mines | Found Prototype Device 655 | -10/Mines | Identified Exp. Sensor Array 822 | -10/Mines | Assembled infested the area 827 | -10/Mines | Assisted by a Guerilla fighting off Assembled 1024 | -10/Mines | Discovered new exit (range 6) 1041 | -10/Mines | Entered Subcaves 1117 | -10/Subcaves | Shifting Twisted Machinery released Sub. Laser 1248 | -10/Subcaves | Core integrity fell below 50% 1269 | -10/Subcaves | Core integrity fell below 20% 1272 | -10/Subcaves | Destroyed by IB-IBW(R) with Subdweller Shrapnel Launcher Last Messages --------------- GOAL=ESCAPE Sub. Laser falls loose from the Twisted Machinery. 01138_ P0-0KR(R) destroyed. 01139_ Subatomizers dissect the Sub. Machine Gun. 01151_ Acquired 23 matter. 01159_ Subatomizers dissect the Sub. Machine Gun. 01181_ System corrupted: Heat flow error (+166). 01235_ System corrupted: Energy discharge (-66). 01241_ Aluminum Leg destroyed. 01252_ Grenade Launcher destroyed. 01256_ Subatomizers dissect the Sub. Power Source. 01258_ Aluminum Leg destroyed. 01258_ Rnf. Ion Engine destroyed. 01268_ Assault Rifle destroyed. 01271_ Subatomizers dissect the Sub. Power Source, destroying it. Map ----- +----------------------------------------------------+ | ?????????????????????????????????????????????????? | | ?????????????????????????????????????????????????? | | ?????????????????????????????????????????????????? | | ?????????????????????????????????????????????????? | | ?????????????????????????????????????????????????? | | ?????????????????????????????????????????????????? | | ?????????????????????????????????????????????????? | | ?????????????????????????????????????????????????? | | ?????????????????????????????????????????????????? | | ?????????????????????????????????????????????????? | | ?????????????????????????????????????????????????? | | ?????????????????????????????????????????????????? | | ?????????????????????????####????????????????????? | | ????????????????????????## #????????????????????? | | ????????####???????????## ##???????????????????? | | ???????## #?????????## #???????????????????? | | ???????# #??????### ##??????????????????? | | ???????# ####### #??????????????????? | | ????????# ### #??????????????????? | | ????????# # #??????????????????? | | ????????## ##??####???????????? | | ?????????# ### ## ??????? | | ?????????#" ??????? | | ?????????#" # ??????? | | ?????????# ??????? | | ?????????# @ ??????? | | ?????????## ## ## ??????? | | ?????? ??## ### R ##???? ???????? | | ?????? "## ###?# #????????????? | | ????? "" #####???# #????????????? | | ?????#"[""""????????##### #### #????????????? | | ??????# " ########???## ##?# #????????????? | | ???????#" " # # #???# ### #????????????? | | ????????# " #?### ##??? ???????? | | ????????##""" ### ##???? ??????? | | ?????????### # ### #####? #??????? | | ???????????##### # #? #??####? | | ???????????????# &% ## #?# ## | | ???????????????## [ ## ## ## # | | ????????????????##### # ## #? | | ????????????????????## #### ## ## | | ?????????????????????###??# #### | | ?????????????????????????? #??## # #? | | ????????????????????????? ##???## # ##? | | ???????????????????????? #????## #?? | | ???????????????????????# ????# ### #?? | | ???????????????????????# ????# #?? #? | | ??????????????????????? ????## # ##???? ? | | ?????????????????????? "" #???# #????? ? | | ??????????????????????###"" ##???## #??????? | +----------------------------------------------------+ Best States ------------- Heat Dissipation 25 Energy Generation 12 Energy Capacity 265 Matter Stores 300 Matter Capacity 300 Sight Range 16 Robot Scan Range 20 Terrain Scan Density 10 Evasion (%) 55 Item Schematics ----------------- None Robot Schematics ------------------ None Fabricated ------------ Nothing Alien Tech Used ----------------- None Achievements -------------- Slippery One Challenges ------------ None Game ------ Seed ChipDroneScanner Manual? 0 Play Time 00:12:09 Cumulative 7.8 hours Start 2024.04.01 @ 09:28:14 End 2024.04.01 @ 09:44:20 Sessions 1 Manual Loads 0 Difficulty Rogue Special Mode None Game No. 39 Rogue 39 Adventurer 0 Explorer 0 Win Type - Total 0 Types 0/0/0/0/0/0/0/0/0 Lore% 8 Gallery% 10 Achievement% 11 Wizard Run 0 Options --------- Layout 1 ASCII 0 Keyboard 1 Movement Arrows Keybinds 0 Fullscreen 1 Font 24/Smallcaps Map View 50x35 Zoom Use 0% Tactical HUD 1 Map Filters NONE Filters NONE Steam 1 RUN: a9e6de69-ae5e-479b-a5e5-16c7fcf64a5d